bitfinex/quotes_BTCUSD_20250508
["timestamp","ask_amount","ask_price","bid_price","bid_amount"]
[1746692719380,0.006,99620.0,99619.0,0.02802492]
[1746692731177,0.022,99620.0,99619.0,0.02802492]
[1746692731388,0.0381,99620.0,99619.0,0.02802492]
[1746692732021,0.0381,99620.0,99619.0,0.0186906]
[1746692732414,0.006,99620.0,99619.0,0.0186906]
[1746692734427,0.006,99620.0,99619.0,0.02802492]
[1746692739958,0.0374,99620.0,99619.0,0.02802492]
[1746692740809,0.14512316,99620.0,99619.0,0.02802492]
[1746692743146,0.14512316,99620.0,99619.0,0.0186906]
[1746692743853,0.01004016,99600.0,99597.0,0.0186906]
[1746692744002,0.0154,99598.0,99597.0,0.0186906]
[1746692745229,0.11806692,99598.0,99597.0,0.0186906]
[1746692745436,0.13436692,99598.0,99597.0,0.0186906]
[1746692746058,0.13436692,99598.0,99596.0,0.00013628]
[1746692746059,0.23210926,99597.0,99596.0,0.00013628]
[1746692746258,0.33277618,99597.0,99596.0,0.00013628]
[1746692746981,0.33982112,99597.0,99596.0,0.00013628]
[1746692747181,0.34082112,99597.0,99596.0,0.00013628]
[1746692747865,0.34082112,99597.0,99596.0,0.00113628]
[1746692748070,0.34082112,99597.0,99596.0,0.00013628]
[1746692748275,0.33982112,99597.0,99596.0,0.00013628]
[1746692748470,0.34182112,99597.0,99596.0,0.00013628]
[1746692748677,0.33982112,99597.0,99596.0,0.00013628]
[1746692749259,0.34282112,99597.0,99596.0,0.00113628]
[1746692749464,0.34582112,99597.0,99596.0,0.00113628]
[1746692750106,0.34282112,99597.0,99596.0,0.00113628]
[1746692750508,1.03242112,99597.0,99596.0,0.00113628]
[1746692750690,1.02937618,99597.0,99596.0,0.00113628]
[1746692752085,0.89740926,99597.0,99596.0,0.00113628]
[1746692753494,0.89740926,99597.0,99596.0,0.03363628]
[1746692753684,0.007,99597.0,99596.0,0.03363628]
[1746692757223,0.007,99597.0,99596.0,0.43363628]
[1746692759327,0.007,99597.0,99596.0,0.63444755]
[1746692759533,0.007,99597.0,99596.0,0.45232688]
[1746692760180,0.003,99597.0,99596.0,0.45232688]
[1746692760583,0.001,99597.0,99596.0,0.45132688]
[1746692760980,0.00750317,99599.0,99596.0,0.45092688]
[1746692761292,0.20830848,99599.0,99597.0,0.0321]
[1746692761696,0.20830848,99599.0,99597.0,0.0163]
[1746692762046,0.20830848,99599.0,99598.0,0.0186906]
[1746692762661,0.20830848,99599.0,99596.0,0.01882688]
[1746692763004,0.21030848,99599.0,99596.0,0.01882688]
[1746692763365,0.20080926,99597.0,99596.0,0.00013628]
[1746692764713,0.20080926,99597.0,99596.0,0.01882688]
[1746692765278,0.20180926,99597.0,99596.0,0.01882688]
[1746692771310,0.20080926,99597.0,99596.0,0.01882688]
[1746692771749,0.20280926,99597.0,99596.0,0.01882688]
[1746692772038,0.20380926,99597.0,99596.0,0.01882688]
[1746692772566,0.20280926,99597.0,99596.0,0.01882688]
[1746692772811,0.20480926,99597.0,99596.0,0.01882688]
[1746692773667,0.004,99597.0,99596.0,0.04922688]
[1746692773866,0.004,99597.0,99596.0,0.05856126]
[1746692774069,0.004,99597.0,99596.0,0.05976126]
[1746692774270,0.004,99597.0,99596.0,0.02816126]
[1746692774423,0.002,99597.0,99596.0,0.02816126]
[1746692774823,0.004,99597.0,99596.0,0.02816126]
[1746692775227,0.002,99597.0,99596.0,0.02816126]
[1746692775546,0.003,99597.0,99596.0,0.02816126]
[1746692776878,0.002,99597.0,99596.0,0.02816126]
[1746692786173,0.002,99597.0,99596.0,0.02816126]
[1746692786366,0.20280926,99597.0,99596.0,0.02816126]
[1746692788075,0.23550926,99597.0,99596.0,0.02816126]
[1746692788500,0.21910926,99597.0,99596.0,0.02806126]
[1746692791551,0.33477618,99597.0,99596.0,0.02806126]
[1746692791984,0.33477618,99597.0,99596.0,0.01872688]
[1746692792193,0.33377618,99597.0,99596.0,0.01872688]
[1746692792615,1.02537618,99597.0,99596.0,3.628e-05]
[1746692793555,1.03791451,99597.0,99596.0,3.628e-05]
[1746692794123,1.03721969,99597.0,99596.0,3.628e-05]
[1746692794522,1.02768136,99597.0,99596.0,3.628e-05]
[1746692794723,1.01268136,99597.0,99596.0,3.628e-05]
[1746692794982,0.99638136,99597.0,99596.0,3.628e-05]
[1746692795630,1.01288136,99597.0,99596.0,3.628e-05]
[1746692796575,0.99638136,99597.0,99596.0,3.628e-05]
[1746692796922,1.02738136,99597.0,99596.0,3.628e-05]
[1746692797741,1.07246284,99597.0,99596.0,3.628e-05]
[1746692798154,1.03443258,99597.0,99596.0,3.628e-05]
[1746692801130,1.03322996,99597.0,99596.0,3.628e-05]
[1746692805036,1.02617874,99597.0,99596.0,3.628e-05]
[1746692805309,0.01004268,99575.0,99572.0,0.2593031]
[1746692805492,0.01004268,99575.0,99573.0,0.0306]
[1746692805692,0.01004268,99575.0,99574.0,0.0306]
[1746692806938,0.01004268,99575.0,99574.0,0.0156]
[1746692807097,0.2108963,99575.0,99574.0,0.0156]
[1746692807290,0.2108963,99575.0,99574.0,0.002]
[1746692807498,0.2108963,99575.0,99574.0,0.004]
[1746692817669,0.34286322,99575.0,99574.0,0.02270753]
[1746692817897,0.34286322,99575.0,99574.0,0.004]
[1746692818093,0.34991618,99575.0,99574.0,0.004]
[1746692819030,0.34991618,99575.0,99574.0,0.002]
[1746692819235,0.34991618,99575.0,99552.0,0.01272729]
[1746692819236,0.20089801,99553.0,99552.0,0.01272729]
[1746692819478,0.01004419,99560.0,99555.0,0.23249397]
[1746692819671,0.01004429,99559.0,99557.0,0.0307]
[1746692819841,0.01004429,99559.0,99555.0,0.01004469]
[1746692819842,0.01004429,99559.0,99558.0,0.0307]
[1746692820423,0.0104973,99559.0,99558.0,0.0307]
[1746692820626,0.00045301,99559.0,99558.0,4.932]
[1746692820828,0.00045301,99559.0,99558.0,5.0807]
[1746692821116,0.00045301,99559.0,99558.0,5.0817]
[1746692821592,0.00045301,99559.0,99558.0,5.0827]
[1746692822347,0.00045301,99559.0,99558.0,6.064003]
[1746692823379,0.00045301,99559.0,99558.0,5.839779]
[1746692823662,0.00045301,99559.0,99558.0,6.239779]
[1746692826417,0.00045301,99559.0,99558.0,6.269579]
[1746692826839,0.00045301,99559.0,99558.0,6.268579]
[1746692827044,0.00045301,99559.0,99558.0,6.269579]
[1746692827278,0.00045301,99559.0,99558.0,6.270579]
[1746692830328,0.00045301,99559.0,99558.0,6.3992741]
[1746692830550,0.00045301,99559.0,99558.0,0.9014951]
[1746692830764,0.00045301,99559.0,99558.0,10.7579711]
[1746692831160,0.00045301,99559.0,99558.0,10.7569711]
[1746692831769,0.01004137,99588.0,99583.0,0.01004187]
[1746692832087,0.01004086,99593.0,99588.0,0.21086877]
[1746692832285,0.01004096,99592.0,99589.0,4.856476]
[1746692832488,0.01004096,99592.0,99589.0,0.4]
[1746692832654,0.20080376,99600.0,99593.0,0.210858]
[1746692833098,0.21084064,99602.0,99590.0,4.856476]
[1746692833099,0.2108482,99598.0,99590.0,0.21086274]
[1746692833323,0.01004066,99595.0,99591.0,5.2852253]
[1746692833540,0.002,99592.0,99591.0,0.0287493]
[1746692833984,0.01004066,99595.0,99592.0,4.856476]
[1746692834871,0.01004066,99595.0,99593.0,0.4]
[1746692835229,0.01004066,99595.0,99593.0,0.41195156]
[1746692836235,0.2108548,99595.0,99593.0,0.41195156]
[1746692836438,0.01004005,99601.0,99593.0,0.41195156]
[1746692836439,0.01003864,99615.0,99607.0,0.01003945]
[1746692836662,0.01003905,99611.0,99608.0,4.856476]
[1746692836932,0.01003905,99611.0,99605.0,0.4375757]
[1746692836933,0.01003925,99609.0,99606.0,5.196476]
[1746692837140,0.21082056,99611.0,99608.0,0.34]
[1746692837355,0.21082056,99611.0,99609.0,4.856476]
[1746692837564,0.01003905,99611.0,99609.0,4.856476]
[1746692838041,0.01003905,99611.0,99610.0,0.01866834]
[1746692838186,0.01003905,99611.0,99610.0,4.87514434]
[1746692838620,0.02633905,99611.0,99610.0,1.5096]
[1746692838821,0.02633905,99611.0,99608.0,0.34]
[1746692838822,0.20078305,99610.0,99609.0,1.5087]
[1746692839247,0.20078305,99610.0,99609.0,0.5858]
[1746692839422,0.02633905,99611.0,99609.0,0.5643]
[1746692839968,0.001,99610.0,99609.0,0.523]
[1746692840106,0.02633905,99611.0,99609.0,0.523]
[1746692840561,0.0163,99610.0,99609.0,0.523]
[1746692841156,0.01003925,99609.0,99606.0,0.32]
[1746692841356,0.21082447,99609.0,99606.0,0.32]
[1746692841554,0.02623925,99609.0,99607.0,0.1242]
[1746692841769,0.0328,99608.0,99607.0,0.1242]
[1746692842222,0.0328,99608.0,99607.0,0.1007]
[1746692843077,0.0338,99608.0,99607.0,0.1007]
[1746692843510,0.0348,99608.0,99607.0,0.1007]
[1746692843850,0.0348,99608.0,99600.0,0.20080184]
[1746692843851,0.02523955,99606.0,99603.0,0.1031]
[1746692844048,0.01003955,99606.0,99602.0,0.7536]
[1746692844351,0.02523965,99605.0,99602.0,0.7536]
[1746692844547,0.01003965,99605.0,99602.0,0.4251]
[1746692844750,0.21083318,99605.0,99602.0,0.4251]
[1746692845000,0.0318,99602.0,99600.0,0.961573]
[1746692845141,0.02614005,99601.0,99598.0,1.49032]
[1746692845347,0.0157,99600.0,99598.0,1.49032]
[1746692845566,0.016,99599.0,99598.0,1.49032]
[1746692845815,0.016,99599.0,99597.0,0.21084779]
[1746692845982,0.016,99599.0,99598.0,1.832351]
[1746692846181,0.016,99599.0,99598.0,1.833351]
[1746692846380,0.016,99599.0,99598.0,1.834351]
[1746692846631,0.016,99599.0,99598.0,1.833351]
[1746692846961,0.016,99599.0,99598.0,1.834351]
[1746692847462,0.016,99599.0,99598.0,1.833351]
[1746692847639,0.016,99599.0,99598.0,1.64868921]
[1746692848153,0.016,99599.0,99598.0,1.695697]
[1746692848758,0.016,99599.0,99598.0,1.696697]
[1746692848967,0.016,99599.0,99598.0,1.177097]
[1746692849105,0.016,99599.0,99598.0,1.577097]
[1746692849653,0.016,99599.0,99598.0,1.457016]
[1746692849814,0.016,99599.0,99598.0,1.235966]
[1746692851816,0.016,99599.0,99598.0,0.402]
[1746692852044,0.016,99599.0,99598.0,1.374624]
[1746692852243,0.016,99599.0,99598.0,3.999093]
[1746692852445,0.016,99599.0,99598.0,4.000098]
[1746692852996,0.016,99599.0,99598.0,3.8175422]
[1746692853780,0.2273431,99601.0,99598.0,3.8175422]
[1746692853974,0.2273431,99601.0,99599.0,3.588051]
[1746692854162,0.0165,99600.0,99599.0,3.546855]
[1746692854776,0.01004005,99601.0,99599.0,3.546855]
[1746692854980,0.20080321,99600.0,99599.0,3.546855]
[1746692855519,0.21720321,99600.0,99599.0,3.546855]
[1746692855745,0.21720321,99600.0,99599.0,3.51987725]
[1746692855930,0.21720321,99600.0,99599.0,3.51167296]
[1746692856138,0.21720321,99600.0,99599.0,3.42493213]
[1746692856539,0.21720321,99600.0,99599.0,3.463454]
[1746692856887,0.21083077,99606.0,99599.0,5.09665721]
[1746692857093,0.01003985,99603.0,99600.0,9.598893]
[1746692857293,0.2108373,99603.0,99601.0,7.35399778]
[1746692857562,0.01003965,99605.0,99602.0,7.367966]
[1746692857699,0.01003965,99605.0,99603.0,3.9669]
[1746692857909,0.01003965,99605.0,99602.0,8.27464229]
[1746692858119,0.01003965,99605.0,99603.0,3.707]
[1746692858322,0.20079716,99603.0,99602.0,4.030209]
[1746692858519,0.20080119,99601.0,99600.0,0.001]
[1746692859068,0.20080119,99601.0,99599.0,0.001]
[1746692859269,0.20080119,99601.0,99600.0,8.747947]
[1746692859471,0.20080119,99601.0,99598.0,0.2194442]
[1746692859472,0.20080119,99601.0,99599.0,8.786128]
[1746692859910,0.20080119,99601.0,99600.0,0.001]
[1746692860101,0.20080119,99601.0,99600.0,8.62298]
[1746692860258,0.20080119,99601.0,99600.0,8.579108]
[1746692860644,0.20080119,99601.0,99600.0,8.24028]
[1746692861512,0.01003995,99602.0,99600.0,8.24028]
[1746692861684,0.01003995,99602.0,99601.0,4.56373]
[1746692861903,0.01003995,99602.0,99601.0,1.631949]
[1746692862039,0.21084128,99601.0,99599.0,0.001]
[1746692862243,0.21084128,99601.0,99600.0,8.935835]
[1746692862447,0.01004005,99601.0,99600.0,0.4]
[1746692862650,0.01004005,99601.0,99600.0,0.401]
[1746692863046,0.01004005,99601.0,99600.0,0.4]
[1746692863283,0.01004005,99601.0,99600.0,9.384063]
[1746692863546,0.01004005,99601.0,99600.0,9.385063]
[1746692864062,0.01004005,99601.0,99600.0,9.336835]
[1746692864262,0.21084112,99602.0,99600.0,9.336835]
[1746692864263,0.20077601,99614.0,99607.0,0.01003945]
[1746692864503,0.01003854,99616.0,99608.0,8.36660408]
[1746692864667,0.01003905,99611.0,99609.0,0.502936]
[1746692864869,0.01003955,99606.0,99603.0,0.34]
[1746692865075,0.01003955,99606.0,99605.0,0.34]
[1746692865294,0.01003955,99606.0,99605.0,1.05732]
[1746692865495,0.01003955,99606.0,99605.0,1.063389]
[1746692865706,0.01003955,99606.0,99605.0,1.02722]
[1746692865897,0.21082661,99608.0,99605.0,1.02722]
[1746692866061,0.21082661,99608.0,99607.0,0.34]
[1746692866274,0.21082661,99608.0,99607.0,1.145775]
[1746692866623,0.21082661,99608.0,99607.0,1.458237]
[1746692867155,0.21082661,99608.0,99607.0,1.422068]
[1746692867346,0.01003935,99608.0,99607.0,1.422068]
[1746692867960,0.01003915,99610.0,99607.0,1.422068]
[1746692868166,0.001,99608.0,99606.0,0.34]
[1746692868390,0.002,99608.0,99606.0,4.097589]
[1746692868602,0.002,99608.0,99607.0,4.497589]
[1746692868789,0.002,99608.0,99607.0,4.532754]
[1746692868989,0.02553915,99610.0,99608.0,0.34]
[1746692869197,0.02753915,99610.0,99608.0,0.34]
[1746692869410,0.02753915,99610.0,99608.0,0.54078669]
[1746692869411,0.002,99610.0,99608.0,0.54078669]
[1746692869620,0.001,99610.0,99609.0,4.4874]
[1746692869902,0.21081996,99612.0,99609.0,4.4874]
[1746692870197,0.21081996,99612.0,99610.0,4.856476]
[1746692870556,0.21081996,99612.0,99608.0,0.34]
[1746692870557,0.21081996,99612.0,99609.0,4.856476]
[1746692870746,0.21081996,99612.0,99610.0,0.4]
[1746692870974,0.22641996,99612.0,99610.0,2.1449]
[1746692871187,0.22641996,99612.0,99610.0,0.4]
[1746692871785,0.015,99611.0,99610.0,0.4]
[1746692872342,0.0311,99611.0,99610.0,0.4]
[1746692873128,0.0351,99611.0,99610.0,0.4]
[1746692881921,0.01004026,99599.0,99596.0,0.34]
[1746692882124,0.01004016,99600.0,99597.0,8.599533]
[1746692882328,0.01003985,99603.0,99600.0,0.01004016]
[1746692882544,0.21083727,99603.0,99601.0,2.741316]
[1746692882712,0.21083727,99603.0,99602.0,5.387814]
[1746692883028,0.21083727,99603.0,99602.0,3.929214]
[1746692883225,0.21083727,99603.0,99602.0,2.729214]
[1746692883469,0.21083727,99603.0,99602.0,2.625514]
[1746692884695,0.21083727,99603.0,99602.0,2.585114]
[1746692885613,0.01003985,99603.0,99600.0,8.62221]
[1746692886024,0.21083882,99603.0,99601.0,0.4]
[1746692886242,0.21083882,99603.0,99602.0,7.88424573]
[1746692886864,0.21083882,99603.0,99602.0,7.84807673]
[1746692887173,0.21083882,99603.0,99602.0,6.51407673]
[1746692887972,0.01003985,99603.0,99602.0,6.51407673]
[1746692888196,0.01003985,99603.0,99602.0,6.50402973]
[1746692888524,0.01003985,99603.0,99602.0,5.56332973]
[1746692889623,0.01003985,99603.0,99602.0,5.96332973]
[1746692890691,0.01003985,99603.0,99602.0,5.81964962]
[1746692890898,0.01003985,99603.0,99602.0,5.884328]
[1746692891752,0.01003985,99603.0,99602.0,5.868253]
[1746692892574,0.01003985,99603.0,99602.0,5.736653]
[1746692893107,0.01003985,99603.0,99602.0,5.495553]
[1746692893409,0.01003985,99603.0,99602.0,5.262453]
[1746692893685,0.01003985,99603.0,99602.0,5.117453]
[1746692894090,0.01003985,99603.0,99602.0,5.063453]
[1746692894967,0.01003985,99603.0,99602.0,4.663453]
[1746692895166,0.01003985,99603.0,99602.0,4.649853]
[1746692895370,0.01003985,99603.0,99602.0,4.618453]
[1746692895570,0.01003985,99603.0,99602.0,4.607653]
[1746692896139,0.01003985,99603.0,99600.0,0.4]
[1746692896288,0.01003985,99603.0,99601.0,4.517745]
[1746692897099,0.01003985,99603.0,99601.0,4.495045]
[1746692897316,0.01003985,99603.0,99601.0,4.483945]
[1746692899450,0.01003985,99603.0,99600.0,9.455849]
[1746692899654,0.01003985,99603.0,99600.0,7.010173]
[1746692899865,0.01003985,99603.0,99601.0,0.4]
[1746692900020,0.01003985,99603.0,99602.0,8.522373]
[1746692900225,0.01003985,99603.0,99602.0,5.955173]
[1746692901876,0.01003985,99603.0,99602.0,5.082273]
[1746692903218,0.01003995,99602.0,99600.0,0.34]
[1746692903421,0.01003995,99602.0,99601.0,8.331673]
[1746692903627,0.21083913,99602.0,99601.0,8.731673]
[1746692905149,0.21083913,99602.0,99601.0,8.528573]
[1746692905359,0.21083913,99602.0,99601.0,8.227773]
[1746692905913,0.01003965,99605.0,99601.0,8.227773]
[1746692906120,0.20079514,99604.0,99602.0,9.455849]
[1746692906566,0.20079918,99602.0,99601.0,9.455849]
[1746692906734,0.20079918,99602.0,99601.0,0.4]
[1746692907139,0.20079918,99602.0,99601.0,9.855849]
[1746692907641,0.20079918,99602.0,99601.0,9.87457957]
[1746692907834,0.20079918,99602.0,99601.0,9.61051457]
[1746692908476,0.21083489,99604.0,99601.0,9.45679157]
[1746692908740,0.21083489,99604.0,99602.0,9.34551]
[1746692909132,0.21083489,99604.0,99603.0,0.01873057]
[1746692909430,0.21083489,99604.0,99603.0,4.57048556]
[1746692909628,0.21083489,99604.0,99603.0,5.02746856]
[1746692911776,0.21083489,99604.0,99603.0,4.29218356]
[1746692913019,0.21083489,99604.0,99603.0,4.25802256]
[1746692914042,0.19083489,99604.0,99603.0,4.25802256]
[1746692914366,0.01003975,99604.0,99603.0,4.25802256]
[1746692917734,0.01003975,99604.0,99603.0,0.42809556]
[1746692918013,0.01003975,99604.0,99603.0,5.02746856]
[1746692923020,0.01003975,99604.0,99603.0,4.85381156]
[1746692925075,0.01003975,99604.0,99603.0,4.84444657]
[1746692925440,0.01003975,99604.0,99603.0,4.825716]
[1746692928024,0.02543975,99604.0,99603.0,4.825716]
[1746692928409,0.02543975,99604.0,99603.0,0.4]
[1746692928603,0.02543975,99604.0,99603.0,5.00873059]
[1746692929287,0.01003975,99604.0,99603.0,5.00873059]
[1746692930641,0.01003975,99604.0,99603.0,5.02744335]
[1746692937274,0.02523975,99604.0,99603.0,5.02744335]
[1746692937773,0.02523975,99604.0,99603.0,4.88794535]
[1746692938053,0.01003975,99604.0,99603.0,4.87588935]
[1746692938197,0.01003975,99604.0,99603.0,2.58918735]
[1746692938921,0.01003975,99604.0,99603.0,0.42807035]
[1746692939289,0.02633975,99604.0,99603.0,0.42807035]
[1746692942015,0.02633975,99604.0,99603.0,0.02807035]
[1746692942550,0.02633975,99604.0,99603.0,0.42807035]
[1746692942955,0.20938957,99604.0,99603.0,0.02807035]
[1746692943352,0.15512683,99604.0,99603.0,0.01871276]
[1746692943583,0.15512683,99604.0,99591.0,0.05]
[1746692943584,0.0325,99594.0,99592.0,0.01871276]
[1746692943785,0.10066692,99593.0,99592.0,0.01871276]
[1746692943998,0.13316692,99593.0,99592.0,0.01871276]
[1746692944172,0.23141934,99592.0,99591.0,0.05]
[1746692946550,0.23241934,99592.0,99591.0,0.05]
[1746692946704,0.23341934,99592.0,99591.0,0.05]
[1746692948501,0.33408626,99592.0,99591.0,0.05]
[1746692949341,0.33208626,99592.0,99591.0,0.05]
[1746692949749,0.43455121,99592.0,99591.0,0.05]
[1746692950006,0.33808626,99592.0,99591.0,0.05]
[1746692968420,0.34513222,99592.0,99591.0,0.05]
[1746692971825,0.32973222,99592.0,99591.0,0.05]
[1746692972023,0.32268626,99592.0,99591.0,0.05]
[1746692974855,0.30748626,99592.0,99591.0,0.05]
[1746692975539,0.32248626,99592.0,99591.0,0.05]
[1746692977377,0.30748626,99592.0,99591.0,0.05]
[1746692977589,0.006,99592.0,99591.0,0.05]
[1746692977760,0.006,99592.0,99591.0,5.60282479]
[1746692978398,0.003,99592.0,99591.0,5.60282479]
[1746692978733,0.003,99592.0,99591.0,0.71384879]
[1746692978734,0.005,99592.0,99591.0,0.71384879]
[1746692978851,0.002,99592.0,99591.0,0.71384879]
[1746692979055,0.002,99592.0,99591.0,0.695127]
[1746692979259,0.04537098,99592.0,99591.0,0.05]
[1746692979531,0.003,99592.0,99591.0,0.05]
[1746692979940,0.001,99592.0,99591.0,0.05]
[1746692980056,0.21085678,99594.0,99591.0,0.05]
[1746692980263,0.001,99592.0,99591.0,0.05]
[1746692980480,0.003,99592.0,99591.0,0.05]
[1746692980697,0.002,99592.0,99591.0,0.05]
[1746692981099,0.004,99592.0,99591.0,0.05]
[1746692988901,0.20481934,99592.0,99591.0,0.05]
[1746692991421,0.01004157,99586.0,99580.0,0.23292102]
[1746692991620,0.01004157,99586.0,99583.0,7.677246]
[1746692992030,0.01004157,99586.0,99583.0,7.415971]
[1746692992364,0.01004157,99586.0,99583.0,7.692446]
[1746692992570,0.01004157,99586.0,99584.0,2.784593]
[1746692993192,0.01104157,99586.0,99584.0,2.784593]
[1746692993364,0.01104157,99586.0,99583.0,0.02524187]
[1746692993365,0.01104157,99586.0,99585.0,2.784593]
[1746692993570,0.01104157,99586.0,99584.0,2.784593]
[1746692993774,0.01004157,99586.0,99584.0,2.784593]
[1746692993979,0.01104157,99586.0,99584.0,2.784593]
[1746692995044,0.01104157,99586.0,99585.0,0.4]
[1746692995239,0.01204157,99586.0,99585.0,3.184593]
[1746692995950,0.01004157,99586.0,99585.0,3.184593]
[1746692996433,0.01104157,99586.0,99585.0,3.184593]
[1746692996771,0.01204157,99586.0,99585.0,3.184593]
[1746692997206,0.01204157,99586.0,99585.0,2.923318]
[1746692997603,0.002,99586.0,99585.0,2.923318]
[1746692999504,0.002,99586.0,99585.0,2.651994]
[1746693000743,0.002,99586.0,99585.0,2.85282745]
[1746693000889,0.002,99586.0,99585.0,0.63193345]
[1746693001587,0.002,99586.0,99585.0,9.14425545]
[1746693002176,0.002,99586.0,99585.0,9.12315145]
[1746693004279,0.14800777,99586.0,99585.0,8.39096657]
[1746693004479,0.14800777,99586.0,99582.0,4.521e-05]
[1746693004480,0.59617834,99583.0,99582.0,4.521e-05]
[1746693004678,0.68684526,99583.0,99582.0,4.521e-05]
[1746693005505,0.67935483,99583.0,99582.0,4.521e-05]
[1746693005654,0.33935483,99583.0,99582.0,4.521e-05]
[1746693005853,0.34035483,99583.0,99582.0,0.00504521]
[1746693006066,0.33330441,99583.0,99582.0,0.00504521]
[1746693006975,0.33330441,99583.0,99582.0,0.01004521]
[1746693008267,0.33330441,99583.0,99582.0,0.41004521]
[1746693008469,0.30250441,99583.0,99582.0,0.41004521]
[1746693009054,0.31810441,99583.0,99582.0,0.41004521]
[1746693014056,0.33320441,99583.0,99582.0,0.41004521]
[1746693014262,0.33320441,99583.0,99582.0,0.01004521]
[1746693015907,0.33320441,99583.0,99582.0,0.00504521]
[1746693016098,0.34024551,99583.0,99582.0,0.00504521]
[1746693016301,0.34024551,99583.0,99582.0,0.01004521]
[1746693016654,0.34024551,99583.0,99582.0,0.00504521]
[1746693017049,0.33924551,99583.0,99582.0,0.00404521]
[1746693017256,0.7356924,99583.0,99582.0,0.00404521]
[1746693017482,0.7356924,99583.0,99582.0,0.00804521]
[1746693017483,0.7366924,99583.0,99582.0,0.00804521]
[1746693017806,0.7356924,99583.0,99582.0,0.00404521]
[1746693018029,0.7356924,99583.0,99582.0,0.00804521]
[1746693018469,0.67924551,99583.0,99582.0,0.00804521]
[1746693018808,0.69378636,99583.0,99582.0,0.00804521]
[1746693019624,0.68674526,99583.0,99582.0,0.00804521]
[1746693020008,0.68674526,99583.0,99541.0,0.51413867]
[1746693020009,0.0100458,99544.0,99541.0,0.50409256]
[1746693020283,0.0100458,99544.0,99541.0,0.50454557]
[1746693020284,0.20092021,99542.0,99541.0,0.50454557]
[1746693020486,0.20092021,99542.0,99541.0,0.51582245]
[1746693020962,0.20092021,99542.0,99541.0,0.91582245]
[1746693021109,0.20092021,99542.0,99541.0,0.91782245]
[1746693021554,0.20092021,99542.0,99541.0,0.50454557]
[1746693021743,0.20092021,99542.0,99541.0,0.50654557]
[1746693022158,0.20092021,99542.0,99541.0,0.50754557]
[1746693023378,0.20092021,99542.0,99541.0,0.50554557]
[1746693023553,0.20092021,99542.0,99541.0,0.50454557]
[1746693023758,0.20292021,99542.0,99541.0,0.50454557]
[1746693023953,0.20092021,99542.0,99541.0,0.50454557]
[1746693024182,0.33318713,99542.0,99541.0,0.50454557]
[1746693024407,0.33718713,99542.0,99541.0,0.505455]
[1746693024960,0.33718713,99542.0,99541.0,0.504455]
[1746693025163,0.33318713,99542.0,99541.0,0.504455]
[1746693025377,0.34118713,99542.0,99541.0,0.505455]
[1746693025790,0.34018713,99542.0,99541.0,0.505455]
[1746693026214,1.03478713,99542.0,99541.0,0.505455]
[1746693026673,1.03478713,99542.0,99541.0,0.50536452]
[1746693027425,1.04932798,99542.0,99541.0,0.50536452]
[1746693028563,1.04432798,99542.0,99541.0,0.50536452]
[1746693028715,1.04132798,99542.0,99541.0,0.50436452]
[1746693028881,1.04732798,99542.0,99541.0,0.50536452]
[1746693029282,1.04332798,99542.0,99541.0,0.50536452]
[1746693029489,1.04732798,99542.0,99541.0,0.50636452]
[1746693030225,1.03278713,99542.0,99541.0,0.50636452]
[1746693030404,1.01708713,99542.0,99541.0,0.50636452]
[1746693030605,1.00118713,99542.0,99541.0,0.50636452]
[1746693033216,1.03258713,99542.0,99541.0,0.50636452]
[1746693033425,1.03258713,99542.0,99541.0,0.50626452]
[1746693038407,1.04712798,99542.0,99541.0,0.50626452]
[1746693043123,1.1477949,99542.0,99541.0,0.50626452]
[1746693043334,1.04712798,99542.0,99541.0,0.50626452]
[1746693044792,1.03712798,99542.0,99541.0,0.50426452]
[1746693045260,1.03912798,99542.0,99541.0,0.51026452]
[1746693048580,1.40726196,99542.0,99541.0,0.51026452]
[1746693049428,1.50726196,99542.0,99541.0,0.51026452]
[1746693049599,1.50726196,99542.0,99541.0,0.44239906]
[1746693049600,1.61792888,99542.0,99541.0,0.44239906]
[1746693049844,1.61792888,99542.0,99501.0,0.01]
[1746693049845,0.20100098,99502.0,99501.0,0.01]
[1746693050046,0.20100098,99502.0,99501.0,0.0416]
[1746693050247,0.20099998,99503.0,99501.0,0.01]
[1746693050452,0.20099998,99503.0,99502.0,0.0316]
[1746693051383,0.20145276,99503.0,99502.0,0.0316]
[1746693052083,0.20245276,99503.0,99502.0,0.0316]
[1746693052342,0.30311968,99503.0,99501.0,0.01]
[1746693052545,0.20545276,99503.0,99502.0,0.001]
[1746693052745,0.30611968,99503.0,99502.0,0.001]
[1746693053127,0.30611968,99503.0,99502.0,0.0166]
[1746693053534,0.30611968,99503.0,99502.0,0.02597214]
[1746693054151,0.30611968,99503.0,99502.0,0.04472137]
[1746693055197,0.20545276,99503.0,99502.0,0.04472137]
[1746693055403,0.20545276,99503.0,99502.0,0.06052137]
[1746693056132,0.20545276,99503.0,99502.0,0.04177214]
[1746693058800,0.20545276,99503.0,99502.0,0.0324]
[1746693061092,0.20545276,99503.0,99502.0,0.04177214]
[1746693062771,0.20545276,99503.0,99502.0,0.04168162]
[1746693063091,0.20545276,99503.0,99502.0,0.02588162]
[1746693063506,0.20545276,99503.0,99502.0,0.00090948]
[1746693064537,0.20545276,99503.0,99502.0,0.01620948]
[1746693064744,0.20545276,99503.0,99502.0,0.01611893]
[1746693065516,0.20545276,99503.0,99502.0,0.04422099]
[1746693066047,0.20545276,99503.0,99502.0,0.02892099]
[1746693070588,0.20545276,99503.0,99502.0,0.06042099]
[1746693071525,0.20545174,99503.0,99502.0,0.06042099]
[1746693072712,0.00445278,99503.0,99502.0,4.81664599]
[1746693072926,0.20545174,99503.0,99502.0,4.81664599]
[1746693073416,0.20545174,99503.0,99502.0,0.02892099]
[1746693076427,0.20545174,99503.0,99502.0,0.05972099]
[1746693077010,0.20545174,99503.0,99502.0,0.04472099]
[1746693077951,0.20545174,99503.0,99502.0,0.02892099]
[1746693079153,0.20545174,99503.0,99502.0,0.04552099]
[1746693079733,0.00445278,99503.0,99502.0,0.04552099]
[1746693079955,0.00445278,99503.0,99502.0,0.06052099]
[1746693080411,0.00445278,99503.0,99502.0,0.04552099]
[1746693082180,0.00445278,99503.0,99502.0,0.02892099]
[1746693084937,0.20545174,99503.0,99502.0,0.02892099]
[1746693085129,0.20245174,99503.0,99502.0,0.02810206]
[1746693085427,0.22545174,99503.0,99502.0,0.02810206]
[1746693087693,0.02445278,99503.0,99502.0,0.06050206]